Cogmind - Beta 16.1 @@@ ROGUE MODE // 2026.03.05 @ 16:08:57 Player: Zable Result: Destroyed by as-29038 with Assembled Blade Performance ------------- Evolutions (0) 0 Regions Visited (2) 400 Robots Destroyed (19) 95 Value Destroyed (269) 269 Prototype IDs (0) 0 Alien Tech Used (0) 0 Bonus (0) 0 TOTAL SCORE: 764 Bonus ------- None Cogmind --------- Core Integrity 0/250 Matter 176/300 Energy 249/250 System Corruption 0% Temperature Cool (0) Movement Rolling (95) Ox1 Location -10/Mines Parts ------- > --- POWER (1) -------- Ion Engine > --- PROPULSION (2) --- Aluminum Leg Wheel > --- UTILITY (2) ------ Heat Sink Small Storage Unit > --- WEAPON (2) ------- Assault Rifle > --- INVENTORY (8) ---- Ion Engine Compact Wheel High-capacity Matter Pod (24) ECM Suite Peak State ------------ > --- POWER ------------ Ion Engine > --- PROPULSION ------- Aluminum Leg Aluminum Leg > --- UTILITY ---------- Small Storage Unit Seismic Detector > --- WEAPON ----------- Assault Rifle Assault Rifle > --- INVENTORY -------- Ion Engine Light Treads Light Treads Wheel Compact Wheel Medium Laser [Rating: 7] Favorites ----------- Power Ion Engine Engine Ion Engine Propulsion Light Treads Treads Light Treads Leg Aluminum Leg Wheel Wheel Utility Small Storage Unit Device Seismic Detector Storage Small Storage Unit Weapon Assault Rifle Ballistic Gun Assault Rifle Build | -11 -10 -10 ------- Run | Yrd Mat Min Slots Evolved . | . . . Power . | . . . Propulsion . | . . . Utility . | . . . Weapon . | . . . Parts Attached 8 | 1 3 4 Power . | . . . Engine . | . . . Core . | . . . Reactor . | . . . Propulsion 4 | . 2 2 Treads 2 | . 2 . Leg 1 | . . 1 Wheel 1 | . . 1 Hover . | . . . Flight . | . . . Utility 2 | 1 . 1 Device 2 | 1 . 1 Storage . | . . . Processor . | . . . Hackware . | . . . Protection . | . . . Artifact . | . . . Weapon 2 | . 1 1 Energy Gun . | . . . Energy Cannon . | . . . Ballistic Gun 2 | . 1 1 Ballistic Cannon . | . . . Launcher . | . . . Special Weapon . | . . . Impact Weapon . | . . . Slashing Weapon . | . . . Piercing Weapon . | . . . Special Melee Weapon . | . . . Unidentified Prototypes . | . . . Parts Lost 5 | . . 5 Power . | . . . Propulsion 2 | . . 2 Utility 1 | . . 1 Weapon 2 | . . 2 Highest Loss Streak 2 | . . 2 To Critical Strikes . | . . . Average Backups 7 | 6 7 7 Power 1 | 1 1 1 Propulsion 3 | 4 3 2 Utility 2 | . 1 2 Weapon . | 1 1 . Tool/Special . | . . . Unused Backups 4 | . 2 2 Power . | . . . Propulsion 2 | . 2 . Utility 2 | . . 2 Weapon . | . . . Tool/Special . | . . . Average Slot Usage (%) 99 | . 100 97 Engine 14 | . 14 14 Treads 25 | . 26 23 Leg 1 | . 1 2 Device 14 | . 14 14 Storage 14 | . 14 14 Ballistic Gun 27 | . 28 27 Peak Build Rating 7 | 7 7 7 Average Rating 6 | 6 6 6 On Entrance 6 | 6 7 7 Avg Prop Armor Cover (%) . | . . . Naked Turns . | . . . Heaviest Build 15 | 15 15 15 Greatest Support 40 | 20 40 40 Greatest Overweight (x) . | . . . Average Overweight (x) . | . . . Largest Inventory Capacity 8 | 8 8 8 Average Capacity 8 | 8 8 8 Most Carried 8 | 6 8 8 Average Carried 7 | 6 7 7 Final Capacity 8 | 8 8 8 Final Carried 8 | 6 8 4 Class Distribution -------------------- 100% | Mutant Dominant Class ---------------- Mutant | -10/Materials Mutant | -10/Mines Resources | -11 -10 -10 ----------- Run | Yrd Mat Min Matter Collected 636 | 206 270 160 Remotely . | . . . Salvage Created 468 | 30 254 184 Parts 33 | 4 20 9 Haulers Intercepted . | . . . Recyclers Shooed 1 | . 1 . Parts Field Recycled . | . . . Retrieved Matter . | . . . Parts Self-Destructed . | . . . Prevented . | . . . Parts Restored . | . . . Kills | -11 -10 -10 ------- Run | Yrd Mat Min Combat Hostiles Destroyed 15 | . 10 5 Guns 15 | . 10 5 Classes Destroyed 6 | 1 4 1 Worker 3 | . 1 2 Tunneler 3 | 2 1 . Watcher 1 | . 1 . Swarmer 8 | . 8 . Grunt 4 | . 2 2 Assembled 3 | . . 3 Best Kill Streak 4 | 1 4 3 Combat Bots Only 3 | . 3 3 Max Kills in Single Turn 2 | 1 2 1 Gunslinging . | . . . Exploded . | . . . Melee . | . . . Uniques/NPCs Destroyed . | . . . Combat | -11 -10 -10 -------- Run | Yrd Mat Min Hostile Shots Fired 95 | . 39 56 Missed 20 | . 12 8 Hits 75 | . 27 48 Melee 5 | . . 5 Projectile 70 | . 27 43 AOE 1 | . . 1 Critical Strikes 4 | . . 4 Damage Taken 978 | . 218 760 Core 271 | . 48 223 Absorbed by Shields . | . . . Core Remaining (%) 100 | 100 . . Volleys Fired 80 | 2 38 40 Largest 2 | 2 2 2 Hottest 40 | 40 40 40 Shots Fired 157 | 4 76 77 Gun 157 | 4 76 77 Cannon . | . . . Launcher . | . . . Special . | . . . Kinetic 157 | 4 76 77 Thermal . | . . . Explosive . | . . . Electromagnetic . | . . . Robot Hit Streak 9 | 3 6 9 Robot Miss Streak 5 | . 3 5 Penetration Max . | . . . Secondary Targets 2 | . 2 . Max Gunslinging Chain 1 | . 1 . Shots Hit Robots 93 | 3 43 47 Core Hits 32 | 2 16 14 Critical Kills . | . . . Critical Parts Destroyed 1 | . 1 . Critical Strikes 1 | . 1 . Destroy 1 | . 1 . Melee Attacks . | . . . Impact . | . . . Slashing . | . . . Piercing . | . . . Sneak Attacks . | . . . Combat Hostiles . | . . . Follow-up Attacks . | . . . Damage Inflicted 1183 | 40 555 588 Guns 1183 | 40 555 588 Cannons . | . . . Explosions . | . . . Melee . | . . . Ramming . | . . . Kinetic 1183 | 40 555 588 Thermal . | . . . Explosive . | . . . Electromagnetic . | . . . Impact . | . . . Slashing . | . . . Piercing . | . . . Highest Corruption . | . . . Average Corruption . | . . . Corruption Purged . | . . . Corruption Blocked . | . . . Overload Shots . | . . . Overflow Damage . | . . . Projectiles . | . . . Explosions . | . . . Melee . | . . . Knockbacks . | . . . Impact . | . . . Kinetic . | . . . Secondary . | . . . Self-Inflicted Damage . | . . . Shots . | . . . Rammed . | . . . Targets Rammed . | . . . Kicked . | . . . Crushed . | . . . Highest Temperature 33 | . . 33 Average Temperature 11 | . . 11 Received Heat Transfer 285 | . 18 267 Siege Activations . | . . . Martial Activations . | . . . Shielding Activations . | . . . Robots Disrupted . | . . . Combat Hostiles . | . . . Robots Corrupted . | . . . Combat Hostiles . | . . . Parts Fried . | . . . Impact Corruptions . | . . . Robots Melted . | . . . Combat Hostiles . | . . . Parts Melted . | . . . Heat Transferred . | . . . Parts Sabotaged . | . . . Parts Stolen . | . . . Parts Stripped . | . . . Power Chain Reactions . | . . . Alert | -11 -10 -10 ------- Run | Yrd Mat Min Maximum Alert Level . | . . . Low Security (%) 100 | 100 100 100 Level 1 . | . . . Level 2 . | . . . Level 3 . | . . . Level 4 . | . . . Level 5 . | . . . High Security . | . . . Max Security . | . . . Peak Influence 150 | 5 150 52 Initial 52 | . . 52 Average 26 | 1 31 20 Influence Increases 369 | 10 299 60 Destroy 0b10 Robot/C 240 | . 200 40 Destroy 0b10 Robot/NC 35 | 10 15 10 Destroy Leader 52 | . 42 10 Successful Hack 26 | . 26 . Destroy Structure 1 | . 1 . Lose Combat Pursuer 15 | . 15 . Influence Decreases 369 | 10 165 194 Entered New Map 82 | . . 82 Time Decay 287 | 10 165 112 Squads Dispatched 1 | . 1 . Investigation 1 | . 1 . Extermination . | . . . Reinforcement . | . . . Assault . | . . . Garrison . | . . . Intercept . | . . . Searches Triggered . | . . . Construction Impeded . | . . . Haulers Reinforced . | . . . Active Scanning Responses . | . . . Cargo Convoy Interrupts . | . . . Stealth | -11 -10 -10 --------- Run | Yrd Mat Min Distress Signals 1 | . 1 . Communications Jammed . | . . . Distress Signals . | . . . Times Spotted 37 | . 15 22 Peak Tracking Total 12 | . 3 12 Tactical Retreats 4 | . 1 3 Traps | -11 -10 -10 ------- Run | Yrd Mat Min Traps Triggered 2 | . 2 . Indirectly . | . . . Trap Hack Attempts . | . . . Triggered . | . . . Disarmed . | . . . Reprogrammed 3 | . 3 . Reused . | . . . Traps Extracted . | . . . Installed . | . . . Triggered . | . . . Machines | -11 -10 -10 ---------- Run | Yrd Mat Min Machines Disabled . | . . . Max in Single Turn . | . . . Machines Repaired . | . . . Machines Dismantled . | . . . Machines Sabotaged . | . . . Overloaded Fab Kills . | . . . Hacking | -11 -10 -10 --------- Run | Yrd Mat Min Machines Accessed 5 | . 4 1 Terminals 5 | . 4 1 Fabricators . | . . . Repair Stations . | . . . Recycling Units . | . . . Scanalyzers . | . . . Garrison Access . | . . . Total Hacks 18 | . 15 3 Successful 6 | . 6 . Failed 12 | . 9 3 Catastrophic 2 | . 2 . Database Lockouts . | . . . Manual 11 | . 11 . Terminals 18 | . 15 3 Fabricators . | . . . Repair Stations . | . . . Recycling Units . | . . . Scanalyzers . | . . . Garrison Access . | . . . Terminal Hacks 4 | . 4 . Robot Analysis 2 | . 2 . Level Access Points 1 | . 1 . Reprogram Traps 1 | . 1 . Fabricator Hacks . | . . . Repair Station Hacks . | . . . Recycling Unit Hacks . | . . . Scanalyzer . | . . . Garrison Access Hacks . | . . . Unauthorized Hacks 2 | . 2 . Terminals 2 | . 2 . Botnet 2 | . 2 . Fabricators . | . . . Repair Stations . | . . . Recycling Units . | . . . Scanalyzers . | . . . Garrison Access . | . . . Data Cores Recovered . | . . . Used . | . . . Hacking Detections 5 | . 4 1 Full Trace Events 2 | . 2 . Feedback Events . | . . . Feedback Blocked . | . . . Robot Schematics Acquired . | . . . Robots Built . | . . . Authchips . | . . . Time . | . . . Total Robot Build Rating . | . . . Part Schematics Acquired . | . . . Parts Built . | . . . Authchips . | . . . Time . | . . . Total Part Build Rating . | . . . Part Studies Acquired . | . . . Parts Repaired . | . . . Time . | . . . Parts Recycled . | . . . Recycled Matter . | . . . Retrieved Matter . | . . . Retrieved Components . | . . . Parts Scanalyzed . | . . . Part Schematics Acquired . | . . . Parts Damaged . | . . . Bothacking | -11 -10 -10 ------------ Run | Yrd Mat Min Used RIF Installer . | . . . Robots Hacked . | . . . Non-combat . | . . . Combat . | . . . Robot Hacks Applied . | . . . Relay Couplers Released . | . . . Fabnet Peak Effective % . | . . . Robots Rewired . | . . . Allies Hacked . | . . . Hacks Repelled . | . . . Allies | -11 -10 -10 -------- Run | Yrd Mat Min Total Allies . | . . . Largest Group . | . . . Highest-Rated Group . | . . . Highest-Rated Ally . | . . . Total Orders . | . . . Ally Attacks . | . . . Total Damage . | . . . Kills . | . . . Allies Corrupted . | . . . Allies Melted . | . . . Intel | -11 -10 -10 ------- Run | Yrd Mat Min Active Infowar (turns) 962 | 1 684 277 Seismic 962 | 1 684 277 Robot Analysis Total 2 | . 2 . Derelict Logs Recovered . | . . . Drone Launches . | . . . Drone Recoveries . | . . . Exploration | -11 -10 -10 ------------- Run | Yrd Mat Min Turns Passed 1071 | 63 684 324 Spaces Moved 376 | 7 252 117 Core . | . . . Treads 354 | . 237 117 Legs 22 | 7 15 . Wheels . | . . . Hover . | . . . Flight . | . . . Fastest Speed 120 | 120 120 160 Average Speed 157 | 120 157 160 Slowest Speed 160 | 120 160 160 Overloaded Moves . | . . . Propulsion Burnouts . | . . . Robots Hopped . | . . . Potential Cave-ins . | . . . Cave-ins Triggered . | . . . Exploration Rate (%) 26 | 3 52 25 Regions Visited 2 Branch Regions 1 Pre-discovered Areas . | . . . Known Exits Taken . | . . . Unknown Exits Taken 2 | 1 1 . Scrap Searched . | . . . Spaces Dug . | . . . Terrain Destroyed . | . . . Melee . | . . . Projectile . | . . . AOE . | . . . Terrain Rammed . | . . . Walls Destroyed . | . . . Machines Disabled . | . . . Actions | -11 -10 -10 --------- Run | Yrd Mat Min Total 697 | 57 462 178 Wait 228 | 48 163 17 Move 374 | 6 251 117 Hop . | . . . Pick Up 4 | . 4 . Fast Attach 3 | 1 2 . Attach 4 | . . 4 Detach . | . . . Swap 2 | . 2 . Drop 2 | . 2 . Fire 80 | 2 38 40 Melee . | . . . Ram . | . . . Kick . | . . . Crush . | . . . Escape Stasis . | . . . Rewire . | . . . Trap . | . . . Miscellaneous . | . . . Route ------- -11/Scrapyard -10/Materials (discovered 4 exits: *Mat x3 / *Min) -10/Mines History --------- Turn | Location | Event 1 | -11/Scrapyard | Discovered new exit (range 2) 64 | -11/Scrapyard | Entered Materials 315 | -10/Materials | Build established: Mutant 653 | -10/Materials | Identified exit to Materials 737 | -10/Materials | Discovered new exit (range 8) 748 | -10/Materials | Entered Mines 953 | -10/Mines | Assembled infested the area 958 | -10/Mines | Assisted by a Guerilla fighting off Assembled 1036 | -10/Mines | Core integrity fell below 50% 1063 | -10/Mines | Core integrity fell below 20% 1072 | -10/Mines | Destroyed by as-29038 with Assembled Blade Last Messages --------------- 00962_ HV Slug penetrates Wall. 00966_ HV Slug penetrates as-53870. 00966_ as-53870 knocked back. 00979_ R-06 Scavenger destroyed. 00980_ as-53870 destroyed. 00986_ as-17299 destroyed. 00988_ as-51304 destroyed. 00989_ as-01826 destroyed. 00991_ The unstable cave ceiling collapses. 00991_ Lgt. Treads destroyed. 00991_ Destroyed Asb. F-torch. 00992_ The unstable cave ceiling collapses. 01025_ Seismic Detector destroyed. 01027_ Assault Rifle destroyed. 01031_ as-76875 destroyed. 01043_ as-32773 destroyed. 01044_ Acquired 14 matter. 01058_ Lgt. Treads destroyed. 01062_ as-01461 destroyed. 01065_ Assault Rifle destroyed. Map ----- +----------------------------------------------------+ | | | | | | | | | | | | | ?????????????????????????????????????????????????? | | ?????????????????????????????????????????????????? | | ?????????????????????????????????????????????????? | | ?????????????????????????????????????????????????? | | #############????????????????????????????????????? | | # #????????????????????????????????????? | | # #????????????????????????????????????? | | # #????????????????????????????????????? | | # #????????????????????????????????????? | | """ """ #####????????????????????????????????? | | # """ """ =#????????????????????????????????? | | # """ """ ###=#????????????????????###?????????? | | # #?# #???????????????????# #?????????? | | #############?#*#??????????????????? #?????????? | | ??????????????# #??????????????????? #?????????? | | ?##########???# #??????????????????? ##????????? | | ?#T ##### ##########?????????? #????????? | | ?## =* #?????????? #????????? | | ??# """############## ####?????## ##???????? | | ??# """#????????????# @a%#????## #???????? | | ??# """#????????????####a#????# #???????? | | ??# #???????????????# ###### #????????? | | ??# #???????????????# #????????? | | ??#########???????????????# ###### #????????? | | ??????????????????????????# #????## #????????? | | ??????????????????????????# #?????#% % #????????? | | ??????????????????????????# # ????# % #???????? | | ?????????????????????????? ?? " ??????? | | ????????????????????????? [ ###?????? | | ??????????????????????? * % #??????? | | ????????????????????? % ## ?????? | | ??????????????????? %!# #?# ????? | | ????????????????? %! #??# =%???? | | ??????????????? ## ####???##### |???? | | ?????????????? " #######???????????# ???? | | ??????????????? "%" #???????????????????????? | | ??????????????? #####= ##????????????????????????? | | ????????????????????###??????????????????????????? | | ?????????????????????????????????????????????????? | | ?????????????????????????????????????????????????? | | ?????????????????????????????????????????????????? | | ?????????????????????????????????????????????????? | | ?????????????????????????????????????????????????? | | ?????????????????????????????????????????????????? | +----------------------------------------------------+ Best States ------------- Heat Dissipation 35 Energy Generation 10 Energy Capacity 250 Matter Stores 300 Matter Capacity 300 Sight Range 16 Terrain Scan Density 10 Evasion (%) 50 Recoil Reduction 2 Item Schematics ----------------- None Robot Schematics ------------------ None Fabricated ------------ Nothing Repaired ---------- Nothing Studied --------- None Alien Tech Used ----------------- None Achievements -------------- None Challenges ------------ None Game ------ Seed PhasePropulsionHarness Manual? 0 Play Time 00:10:07 Cumulative 46.3 hours Start 2026.03.05 @ 16:01:04 End 2026.03.05 @ 16:08:57 Sessions 1 Manual Loads 0 Difficulty Rogue Special Mode None Game No. 66 Rogue 41 Adventurer 25 Explorer 0 Win Type - Total 0 Types 0/0/0/0/0/0/0/0/0/0 Lore% 28 Gallery% 35 Achievement% 29 Wizard Run 0 Options --------- Layout 0 ASCII 0 Keyboard 1 Movement Numpad Keybinds 0 Fullscreen 1 Font 24/Smallcaps Map View 183x50 Zoom Use 0% Tactical HUD 1 Map Filters NONE Filters NONE Steam 1 RUN: a36df47e-6998-4e05-8271-da5a5a6ccb19